bitfinex-derivatives/quotes_ETHF0:USTF0_20250107
["timestamp","ask_amount","ask_price","bid_price","bid_amount"]
[1736272993191,0.29031,3445.7,3445.4,3.2078]
[1736272993389,0.29031,3445.7,3445.6,0.29031]
[1736272993591,0.29031,3445.7,3445.5,0.29032]
[1736272993989,0.29031,3445.7,3445.4,3.2078]
[1736272994290,0.29029,3445.9,3445.7,0.2903]
[1736272994488,0.29029,3445.9,3445.4,3.2078]
[1736272994694,3.2078,3446.2,3445.4,3.93363]
[1736272994891,3.2078,3446.2,3446.1,0.29027]
[1736272995190,0.29025,3446.4,3446.2,0.29026]
[1736272995496,0.29025,3446.4,3446.3,0.29025]
[1736272995698,0.29024,3446.5,3446.1,0.29027]
[1736272995995,3.2078,3446.8,3446.0,3.2078]
[1736272996191,3.2078,3446.8,3445.5,3.2078]
[1736272996386,0.7256,3446.6,3445.5,3.2078]
[1736272996586,0.29027,3446.1,3445.9,0.29028]
[1736272996890,0.29027,3446.1,3445.5,3.2078]
[1736272996891,0.7256,3446.6,3445.5,3.2078]
[1736272997194,0.29027,3446.2,3446.0,0.29028]
[1736272997392,0.29026,3446.3,3445.6,0.72578]
[1736272997697,0.29023,3446.7,3446.5,0.29024]
[1736272997890,3.2078,3446.8,3446.6,0.29023]
[1736272998091,3.2078,3446.8,3446.7,0.29022]
[1736272998289,3.2078,3447.2,3447.1,0.29019]
[1736272998499,3.2078,3447.7,3446.9,3.93331]
[1736272998797,3.2078,3447.7,3447.5,0.29015]
[1736272998798,3.49794,3447.7,3447.5,0.29015]
[1736272998988,9.0321,3448.3,3446.9,3.2078]
[1736272999187,0.29014,3447.7,3447.0,0.72549]
[1736272999400,9.75732,3448.3,3447.5,0.29015]
[1736272999599,0.29013,3447.8,3447.5,0.29015]
[1736272999993,3.2078,3448.5,3447.1,0.72547]
[1736273000198,0.2901,3448.2,3447.9,0.29011]
[1736273000393,0.2901,3448.2,3447.5,3.2078]
[1736273000596,0.29008,3448.4,3448.1,0.2901]
[1736273000791,3.2078,3448.5,3447.7,0.29014]
[1736273001097,3.2078,3448.5,3447.6,4.4898]
[1736273001098,3.49787,3448.5,3447.6,4.4898]
[1736273001300,3.2078,3449.1,3448.4,3.2078]
[1736273001499,0.29007,3448.5,3448.2,0.29009]
[1736273001691,0.29007,3448.6,3448.2,0.29009]
[1736273002089,3.2078,3449.1,3448.0,3.2078]
[1736273002397,3.2078,3448.7,3448.0,3.2078]
[1736273002893,0.2901,3448.1,3448.0,3.2078]
[1736273003300,3.2078,3448.7,3447.4,4.52196637]
[1736273003603,0.29014,3447.7,3447.4,4.52196637]
[1736273003804,0.29014,3447.7,3447.4,4.81211637]
[1736273004206,3.2078,3448.3,3447.3,0.29016]
[1736273004207,0.29009,3448.2,3447.3,0.29016]
[1736273004401,0.29017,3447.3,3447.2,3.2078]
[1736273004600,3.2078,3447.9,3447.2,3.2078]
[1736273004907,0.29013,3447.8,3447.6,0.29014]
[1736273005204,3.2078,3448.1,3447.3,0.29016]
[1736273005503,0.29015,3447.6,3447.4,0.29016]
[1736273006101,3.2078,3448.1,3447.4,0.29016]
[1736273006306,0.29014,3447.6,3447.4,0.29016]
[1736273006507,0.29014,3447.7,3447.4,0.29016]
[1736273006707,0.29014,3447.7,3447.5,0.29015]
[1736273007007,3.84866342,3448.5,3447.6,3.2078]
[1736273007008,3.2078,3448.5,3447.6,3.2078]
[1736273007208,0.29009,3448.3,3448.1,0.2901]
[1736273007506,0.29008,3448.4,3448.2,0.29009]
[1736273007903,5.253,3448.9,3448.6,0.29006]
[1736273007904,0.29005,3448.8,3448.6,0.29006]
[1736273008100,4.5279,3448.9,3448.0,3.93307]
[1736273008306,3.2078,3449.0,3448.9,0.29003]
[1736273008810,3.2078,3449.5,3449.0,0.29002]
[1736273009109,0.29002,3449.1,3448.9,0.29003]
[1736273009299,0.29003,3449.0,3448.8,0.29004]
[1736273009499,0.72499,3449.4,3448.4,3.2078]
[1736273009700,0.29004,3448.8,3448.4,3.2078]
[1736273009903,0.29003,3449.0,3448.8,0.29004]
[1736273010508,3.2078,3449.5,3448.9,3.2078]
[1736273010708,3.2078,3449.5,3449.4,0.28999]
[1736273011706,0.28999,3449.4,3449.2,0.29]
[1736273011911,0.28999,3449.5,3449.3,0.29]
[1736273012308,0.28999,3449.5,3449.0,4.6595]
[1736273012309,3.2078,3450.2,3449.0,4.6595]
[1736273012514,0.29002,3449.2,3449.0,4.94952]
[1736273012809,0.29003,3449.0,3448.9,3.2078]
[1736273013515,0.29003,3449.0,3448.9,3.49784]
[1736273014406,0.29003,3449.0,3448.9,3.2078]
[1736273014806,0.29006,3448.6,3448.2,4.93829]
[1736273015008,0.29011,3448.1,3447.9,0.29011]
[1736273015207,3.2078,3448.6,3448.1,0.2901]
[1736273015413,0.29009,3448.2,3448.0,0.29011]
[1736273015712,0.72518,3448.5,3447.9,0.29012]
[1736273015914,3.2078,3448.6,3447.9,3.2078]
[1736273016104,0.2901,3448.2,3448.1,0.2901]
[1736273016307,0.29011,3448.1,3448.0,0.29011]
[1736273016911,3.2078,3448.6,3447.9,3.2078]
[1736273017114,0.2901,3448.2,3448.1,0.2901]
[1736273017324,0.2901,3448.2,3447.9,3.2078]
[1736273017325,3.2078,3448.6,3448.0,0.72528]
[1736273017511,3.2078,3448.6,3448.5,0.29007]
[1736273017816,0.29008,3448.5,3448.4,0.29007]
[1736273018113,0.29007,3448.5,3448.4,0.29007]
[1736273019006,3.49787,3448.6,3448.5,0.29007]
[1736273019206,3.2078,3448.6,3448.0,0.72529]
[1736273019409,3.2078,3448.6,3447.9,3.2078]
[1736273019608,0.29007,3448.5,3448.4,0.29007]
[1736273019815,3.2078,3448.6,3447.9,3.2078]
[1736273020017,0.29008,3448.4,3448.3,0.29008]
[1736273020406,0.29009,3448.3,3448.2,0.29009]
[1736273020612,0.2901,3448.3,3448.2,0.29009]
[1736273023112,3.2078,3448.6,3447.9,3.2078]
[1736273023322,3.2078,3448.6,3448.5,0.29007]
[1736273023512,3.49786,3448.6,3448.5,0.29007]
[1736273023722,0.29007,3448.5,3448.4,0.29007]
[1736273024016,0.29007,3448.6,3448.5,0.29006]
[1736273024222,3.2078,3449.2,3448.0,0.72529]
[1736273024518,0.29007,3448.6,3448.5,0.29007]
[1736273024715,0.29007,3448.6,3448.0,0.72529]
[1736273024716,0.29007,3448.6,3448.4,3.49787]
[1736273025016,3.2078,3449.2,3448.5,0.72518]
[1736273025522,3.49781,3449.2,3449.1,0.29002]
[1736273025819,3.49781,3449.2,3448.9,0.29003]
[1736273025820,0.29002,3449.1,3448.9,0.29003]
[1736273026020,3.2078,3449.2,3448.6,4.5575]
[1736273026318,0.28999,3449.5,3449.4,0.28999]
[1736273026514,0.28998,3449.6,3449.5,0.28998]
[1736273026714,5.31389,3450.0,3449.0,0.72507]
[1736273026911,0.28998,3449.7,3449.6,0.28997]
[1736273027420,0.28998,3449.7,3449.2,3.2078]
[1736273027421,4.589,3450.0,3449.2,3.2078]
[1736273027618,3.2078,3450.1,3449.3,0.29]
[1736273027813,0.28996,3449.9,3449.8,0.28996]
[1736273028014,3.2078,3450.1,3449.2,3.2078]
[1736273028218,3.49774,3450.1,3450.0,0.28994]
[1736273028419,3.2078,3450.1,3449.2,3.2078]
[1736273028817,0.28998,3449.6,3449.5,0.28998]
[1736273029018,0.72487,3450.0,3449.2,3.2078]
[1736273029317,0.29,3449.4,3449.3,0.29]
[1736273029521,0.28996,3449.8,3449.4,0.28999]
[1736273029725,0.29,3449.4,3449.3,0.29]
[1736273030524,0.29,3449.3,3449.2,3.2078]
[1736273030826,0.29,3449.3,3449.2,3.49781]
[1736273031323,4.2434,3449.9,3449.2,3.2078]
[1736273031626,0.28995,3449.9,3449.8,0.28994]
[1736273031816,0.28995,3449.8,3449.7,0.28995]
[1736273032025,0.28996,3449.7,3449.6,0.28997]
[1736273032219,5.95451138,3450.1,3449.2,3.2078]
[1736273032523,0.28998,3449.5,3449.3,0.28999]
[1736273032723,0.72487,3449.9,3449.3,0.28999]
[1736273032724,0.28999,3449.4,3449.3,0.28999]
[1736273033117,0.28998,3449.5,3449.4,0.28999]
[1736273033320,0.72487,3449.9,3449.2,3.2078]
[1736273033520,0.23273783,3450.2,3449.2,3.2078]
[1736273033521,0.28999,3449.3,3449.2,3.2078]
[1736273033931,6.67954138,3449.3,3448.6,4.5575]
[1736273034226,0.29005,3448.7,3448.5,4.5542]
[1736273034526,0.29005,3448.8,3448.7,0.29005]
[1736273034824,0.29004,3448.9,3448.8,0.29004]
[1736273035029,0.29003,3449.1,3449.0,0.29002]
[1736273035319,0.29003,3449.0,3448.9,0.29003]
[1736273035527,0.29004,3448.9,3448.8,0.29004]
[1736273035724,3.2078,3449.3,3448.5,4.5542]
[1736273035923,0.29003,3449.0,3448.9,0.29003]
[1736273036631,0.29006,3448.7,3448.6,0.29006]
[1736273036830,0.29007,3448.6,3448.5,0.29007]
[1736273037027,0.29007,3448.5,3448.4,3.49788]
[1736273037335,0.29007,3448.6,3448.5,0.29006]
[1736273038132,0.72509,3449.0,3448.4,3.2078]
[1736273038426,6.18500333,3449.3,3448.4,3.2078]
[1736273038629,0.29007,3448.5,3448.4,0.29008]
[1736273038824,5.95451138,3448.9,3448.0,3.2078]
[1736273039021,0.2901,3448.2,3448.1,0.2901]
[1736273039424,0.72512,3448.8,3448.0,3.2078]
[1736273039632,0.72512,3448.8,3448.2,0.29009]
[1736273039930,0.2901,3448.3,3448.2,0.29009]
[1736273040635,0.29011,3448.2,3448.1,0.2901]
[1736273041526,5.95451138,3448.9,3448.0,3.2078]
[1736273041719,0.2901,3448.3,3448.2,0.29009]
[1736273042733,0.29009,3448.4,3448.3,0.29008]
[1736273043430,0.72514,3448.7,3448.0,3.2078]
[1736273043642,1.0395,3448.4,3448.0,3.2078]
[1736273043934,0.29009,3448.3,3448.2,0.29009]
[1736273044234,1.32958,3448.4,3448.3,0.29009]
[1736273044732,0.2901,3448.3,3448.2,0.29009]
[1736273046144,0.2901,3448.3,3448.0,3.2078]
[1736273046145,0.29011,3448.2,3448.1,0.2901]
[1736273046841,1.0395,3448.4,3447.6,7.72976637]
[1736273046842,0.72523,3448.3,3447.6,7.72976637]
[1736273047047,0.29014,3447.7,3447.6,7.72976637]
[1736273047240,0.29014,3447.7,3447.6,4.52196637]
[1736273047745,0.29014,3447.7,3447.6,4.81211637]
[1736273048235,0.29012,3447.9,3447.8,0.29013]
[1736273048436,0.29013,3447.9,3447.8,0.29013]
[1736273048741,0.29013,3447.9,3447.2,5.40205]
[1736273048742,3.3957952,3448.1,3447.6,0.72536]
[1736273048945,0.29012,3448.0,3447.9,0.29012]
[1736273049241,3.6859052,3448.1,3448.0,0.29011]
[1736273049436,3.3957952,3448.1,3448.0,0.29011]
[1736273049837,1.0395,3448.4,3448.0,3.2078]
[1736273050040,1.0395,3448.4,3448.3,0.29009]
[1736273050839,3.3957952,3448.5,3448.4,0.29008]
[1736273051041,4.52196637,3448.7,3448.4,0.29008]
[1736273051042,4.52196637,3448.7,3448.6,0.29006]
[1736273051241,0.29003,3449.0,3448.9,0.29004]
[1736273051447,3.41076294,3449.1,3448.5,0.72518]
[1736273051448,3.70079294,3449.1,3449.0,0.29003]
[1736273051641,3.70078294,3449.1,3449.0,0.29003]
[1736273051840,3.41076294,3449.1,3449.0,0.29003]
[1736273052147,4.52196637,3449.3,3449.2,0.29001]
[1736273052443,4.54769155,3450.1,3450.0,0.28995]
[1736273053140,4.54769155,3450.1,3450.0,3.49775]
[1736273054044,5.65245797,3450.3,3450.0,3.49775]
[1736273054045,0.28988,3450.8,3450.6,0.2899]
[1736273054248,5.65245797,3451.4,3450.6,2.74671138]
[1736273054443,5.65245797,3451.4,3451.3,0.28984]
[1736273054643,5.65245797,3451.4,3450.9,3.2078]
[1736273054845,5.95451138,3451.3,3450.5,3.2078]
[1736273055047,0.28988,3450.8,3450.6,0.2899]
[1736273055440,0.28987,3450.9,3450.7,0.28988]
[1736273055644,0.28987,3450.9,3450.7,0.28989]
[1736273055836,5.95451138,3451.3,3450.8,0.28988]
[1736273056037,0.28987,3450.9,3450.7,0.28988]
[1736273056253,3.2078,3451.3,3450.6,4.52196637]
[1736273056551,0.28988,3450.8,3450.6,4.52196637]
[1736273056753,0.28989,3450.7,3450.6,4.52196637]
[1736273056955,0.28989,3450.7,3450.4,0.28991]
[1736273057250,0.72462,3451.2,3450.5,0.2899]
[1736273057747,0.72462,3451.2,3450.3,4.52196637]
[1736273057748,0.28991,3450.4,3450.3,4.52196637]
[1736273058247,0.28991,3450.4,3450.1,0.28994]
[1736273058445,7.4932,3450.9,3450.1,0.28994]
[1736273058751,0.28991,3450.5,3450.2,0.28993]
[1736273059049,7.4932,3450.9,3450.3,0.28992]
[1736273059258,0.28988,3450.8,3450.1,0.28993]
[1736273059446,7.4932,3450.9,3450.3,0.28992]
[1736273059646,7.4932,3450.9,3450.0,7.72976637]
[1736273059846,0.28991,3450.4,3450.2,0.28993]
[1736273060555,7.4932,3450.9,3450.1,0.28994]
[1736273060754,7.4932,3450.9,3450.0,3.2078]
[1736273061050,0.28996,3449.8,3449.6,3.49778]
[1736273061251,0.28996,3449.9,3449.6,3.49778]
[1736273061449,4.3608,3450.2,3449.6,3.49778]
[1736273061753,4.3608,3450.2,3449.6,3.2078]
[1736273061945,0.28994,3450.1,3449.8,0.28996]
[1736273062346,4.65073,3450.2,3449.9,0.28995]
[1736273062546,0.28991,3450.5,3450.3,0.28992]
[1736273062747,0.28991,3450.5,3450.0,3.49774]
[1736273062748,0.28993,3450.3,3450.0,3.49774]
[1736273063051,2.26622732,3450.5,3450.0,3.2078]
[1736273063253,2.55613732,3450.5,3450.2,0.28992]
[1736273063455,2.26622732,3450.5,3450.4,0.28991]
[1736273063955,8.6462,3450.9,3450.0,3.2078]
[1736273064350,0.28993,3450.2,3450.0,3.49774]
[1736273064554,0.28993,3450.2,3450.0,0.28994]
[1736273064749,0.28992,3450.3,3450.1,0.28994]
[1736273065056,0.28993,3450.2,3450.0,0.28994]
[1736273065256,3.2078,3450.6,3449.6,3.2078]
[1736273065455,0.28993,3450.2,3450.0,0.28995]
[1736273065653,3.2078,3450.6,3449.6,3.2078]
[1736273065954,0.28997,3449.8,3449.6,3.49778]
[1736273066155,0.28996,3449.9,3449.7,0.28997]
[1736273066454,0.72479,3450.4,3449.6,3.2078]
[1736273066653,0.28996,3449.8,3449.6,3.49778]
[1736273067056,3.2078,3450.2,3449.3,4.52196637]
[1736273067357,0.29,3449.4,3449.3,4.52196637]
[1736273068057,3.2078,3449.7,3449.0,3.2078]
[1736273068355,3.2078,3449.7,3449.3,0.29]
[1736273068356,0.28997,3449.7,3449.3,0.29]
[1736273068559,0.28999,3449.5,3449.3,0.29]
[1736273068759,0.29,3449.4,3449.3,0.29]
[1736273069159,4.5402,3449.8,3449.0,3.2078]
[1736273069359,0.29,3449.3,3449.0,3.2078]
[1736273069554,0.29,3449.5,3449.3,0.29]
[1736273069754,0.28996,3449.9,3449.7,0.28997]
[1736273070252,0.28997,3449.8,3449.6,0.28997]
[1736273070451,3.2078,3450.2,3449.7,0.28997]
[1736273070655,0.28994,3450.1,3449.6,0.28997]
[1736273070851,3.2078,3450.2,3449.4,3.2078]
[1736273071053,0.72485,3450.1,3449.0,3.2078]
[1736273071247,0.72485,3450.1,3449.5,0.28998]
[1736273071248,0.28998,3449.6,3449.5,0.28998]
[1736273071453,3.2078,3450.2,3449.0,3.2078]
[1736273071854,0.28998,3449.6,3449.4,0.28999]
[1736273072247,3.2078,3450.2,3449.0,3.2078]
[1736273072451,0.28997,3449.7,3449.6,0.28997]
[1736273072652,3.49773,3450.2,3450.1,0.28994]
[1736273072852,4.3027,3450.4,3449.9,0.28995]
[1736273073047,0.28994,3450.1,3449.9,0.28995]
[1736273073763,0.28994,3450.1,3449.5,1.01496]
[1736273074063,0.28994,3450.1,3449.9,0.28995]
[1736273074253,4.3027,3450.4,3449.4,3.2078]
[1736273074663,0.28996,3449.9,3449.4,3.2078]
[1736273074862,5.0275,3450.4,3449.4,3.2078]
[1736273075062,4.3024,3450.5,3450.3,0.28992]
[1736273075259,4.59231,3450.5,3449.9,2.74671138]
[1736273075555,3.2078,3450.6,3450.5,0.2899]
[1736273075757,0.28989,3450.7,3450.5,0.2899]
[1736273075961,0.28989,3450.6,3450.5,0.2899]
[1736273076261,0.28989,3450.6,3450.4,0.28991]
[1736273076463,0.28989,3450.6,3450.3,3.2078]
[1736273076464,0.28989,3450.6,3450.5,0.2899]
[1736273076660,4.4499,3451.0,3450.3,3.2078]
[1736273076661,0.28989,3450.7,3450.3,3.2078]
[1736273076868,4.4499,3451.0,3450.3,3.2078]
[1736273077162,0.28991,3450.5,3450.4,0.28991]
[1736273078064,0.2899,3450.6,3450.5,0.2899]
[1736273078266,0.28991,3450.5,3450.4,0.28991]
[1736273078666,5.17458,3451.0,3450.3,3.49771]
[1736273078667,0.28991,3450.4,3450.3,3.49771]
[1736273078868,0.28991,3450.5,3450.4,0.28991]
[1736273079163,0.72468,3450.9,3450.3,3.2078]
[1736273079362,0.28991,3450.4,3450.3,3.2078]
[1736273079667,3.2078,3450.4,3449.7,4.52196637]
[1736273079871,0.72481,3450.3,3449.7,4.52196637]
[1736273080063,0.28993,3450.0,3449.9,0.28993]
[1736273080263,3.2078,3450.4,3449.5,4.52196637]
[1736273080465,0.28994,3449.9,3449.8,0.28995]
[1736273081063,0.28993,3450.0,3449.9,0.28993]
[1736273081671,0.28993,3450.0,3449.9,0.28994]
[1736273081965,3.93256,3450.4,3449.4,3.93274]
[1736273082467,0.28993,3450.0,3449.9,0.28993]
[1736273082766,0.72475,3450.6,3449.5,2.74671138]
[1736273082955,0.72467,3450.8,3450.2,3.2078]
[1736273083360,0.2899,3450.3,3450.2,0.28991]
[1736273083564,0.28991,3450.2,3450.1,0.28991]
[1736273083766,3.93247,3450.8,3449.8,4.2663]
[1736273083954,0.28992,3450.3,3450.2,0.28992]
[1736273084159,0.28991,3450.4,3450.3,0.28991]
[1736273084760,0.28992,3450.4,3450.2,0.28992]
[1736273084967,0.2899,3450.5,3450.4,0.28991]
[1736273085168,0.2899,3450.6,3450.5,0.2899]
[1736273085771,0.2899,3450.5,3450.4,3.49771]
[1736273086069,0.2899,3450.6,3450.5,0.2899]
[1736273086570,5.17457,3451.0,3450.4,3.2078]
[1736273086765,0.2899,3450.6,3450.5,0.28989]
[1736273087168,0.28986,3451.1,3450.4,3.2078]
[1736273087364,3.2078,3451.2,3450.6,3.01862562]
[1736273087568,0.28985,3451.1,3450.7,0.28988]
[1736273087761,0.28986,3451.0,3450.7,4.5018]
[1736273087963,0.28987,3450.9,3450.8,0.28987]
[1736273088265,0.72456,3451.5,3450.7,4.5018]
[1736273088463,0.28987,3450.9,3450.8,0.28987]
[1736273088770,0.72456,3451.5,3450.7,4.5018]
[1736273088771,0.72459,3451.3,3450.7,4.5018]
[1736273089061,9.88448562,3451.8,3450.7,4.5018]
[1736273089372,0.72451,3451.7,3450.7,4.5018]
[1736273089568,0.28986,3451.1,3451.0,0.28985]
[1736273089773,0.28985,3451.2,3451.1,0.28985]
[1736273090462,0.28987,3450.9,3450.8,3.49767]
[1736273090656,0.28987,3450.9,3450.8,0.28987]
[1736273091664,0.28987,3450.8,3450.7,4.79168]
[1736273091967,0.28987,3450.9,3450.8,0.28987]
[1736273093075,3.93238,3451.4,3450.4,3.93256]
[1736273093267,0.28986,3451.0,3450.9,0.28986]
[1736273093467,0.28987,3450.9,3450.8,0.28987]
[1736273093769,3.93238,3451.4,3450.4,3.93256]
[1736273094070,0.28987,3450.9,3450.8,0.28987]
[1736273094265,3.93238,3451.4,3450.4,3.93256]
[1736273094473,0.28986,3451.0,3450.9,0.28986]
[1736273095370,0.28983,3451.4,3451.3,0.28983]
[1736273095575,0.28982,3451.4,3451.3,0.28983]
[1736273095760,3.93228,3451.8,3450.9,3.2078]
[1736273096067,0.28984,3451.3,3450.9,3.2078]
[1736273096276,0.28984,3451.3,3451.2,0.28984]
[1736273096468,0.28983,3451.4,3451.3,0.28983]
[1736273096774,0.28983,3451.3,3451.2,0.28983]
[1736273097567,0.28981,3451.7,3451.6,0.2898]
[1736273097766,0.28981,3451.6,3451.5,0.28981]
[1736273097968,3.2078,3451.8,3451.2,4.5383]
[1736273098275,3.2078,3451.8,3451.2,13.68476095]
[1736273098473,0.28981,3451.7,3451.6,0.2898]
[1736273098676,2.27133178,3452.3,3451.6,2.74265264]
[1736273098869,2.27133178,3452.3,3451.7,3.2078]
[1736273099267,0.28979,3451.8,3451.7,3.4976]
[1736273099472,0.28979,3451.8,3451.7,3.2078]
[1736273099775,0.28979,3451.8,3451.7,8.01956637]
[1736273100375,0.28979,3451.8,3451.7,7.72976637]
[1736273100872,0.28979,3451.8,3451.7,4.52196637]
[1736273101174,0.2898,3451.6,3451.5,4.52196637]
[1736273101367,0.28978,3451.9,3451.7,0.28979]
[1736273101566,7.8682,3452.2,3451.5,4.52196637]
[1736273101869,0.2898,3451.6,3451.5,4.52196637]
[1736273102769,0.28983,3451.3,3451.2,4.52196637]
[1736273103578,4.58503,3451.3,3451.2,4.52196637]
[1736273103779,0.28987,3450.8,3450.7,3.2078]
[1736273103970,4.2952,3451.3,3450.7,3.2078]
[1736273104172,0.28987,3450.8,3450.7,3.49768]
[1736273104473,0.28987,3450.8,3450.7,3.2078]
[1736273104675,0.7246,3451.2,3450.7,3.49768]
[1736273104881,0.28987,3450.8,3450.7,3.49768]
[1736273105380,0.28987,3450.8,3450.7,3.2078]
[1736273105681,0.28987,3450.8,3450.7,3.49768]
[1736273105880,0.28987,3450.8,3450.7,3.2078]
[1736273106178,3.93246,3451.0,3450.4,4.52196637]
[1736273106380,0.2899,3450.5,3450.4,4.52196637]
[1736273106876,0.28991,3450.4,3450.3,4.52196637]
[1736273107077,4.99251,3450.4,3450.3,4.52196637]
[1736273107481,0.28991,3450.4,3450.3,4.52196637]
[1736273108376,3.2078,3450.6,3450.1,0.28992]
[1736273108581,3.2078,3450.6,3449.7,4.52196637]
[1736273108786,0.28993,3450.2,3450.0,0.28994]
[1736273109380,1.01466,3450.5,3449.9,4.81191637]
[1736273109682,3.93253,3450.6,3450.0,0.28994]
[1736273109985,0.2899,3450.5,3449.9,4.81190637]
[1736273110181,0.28993,3450.1,3449.9,4.52196637]
[1736273110380,0.28993,3450.1,3449.9,4.81191637]
[1736273110571,3.93253,3450.6,3449.8,4.52196637]
[1736273110882,0.28995,3449.9,3449.8,4.52196637]
[1736273111179,2.74265264,3449.9,3449.8,4.52196637]
[1736273111381,0.28996,3449.8,3449.7,4.70894957]
[1736273111977,0.28998,3449.6,3449.5,9.04393275]
[1736273112179,2.58704417,3449.6,3449.5,9.04393275]
[1736273112594,0.29004,3448.9,3448.7,4.5254]
[1736273112879,0.29003,3449.0,3448.7,4.5254]
[1736273113075,0.29004,3448.9,3448.7,4.5254]
[1736273113482,7.5213,3449.5,3448.8,2.29706417]
[1736273113683,0.29,3449.3,3448.8,2.29706417]
[1736273113871,0.28998,3449.6,3448.8,2.29706417]
[1736273114075,2.26622732,3449.8,3449.7,0.28997]
[1736273114280,2.26622732,3449.8,3449.7,2.58703417]
[1736273114486,2.62967497,3449.9,3449.8,0.28996]
[1736273114776,4.53056885,3450.1,3450.0,0.28994]
[1736273114984,5.65245797,3450.3,3450.0,5.50486417]
[1736273115172,4.54143326,3451.3,3450.0,10.50486417]
[1736273115372,0.28985,3451.1,3451.0,3.2078]
[1736273115780,0.28988,3450.7,3450.5,0.2899]
[1736273115983,0.28988,3450.7,3450.4,7.37681023]
[1736273115984,0.28985,3451.1,3450.4,4.9247]
[1736273116176,8.81543326,3451.3,3450.4,4.6348]
[1736273116380,8.81543326,3451.3,3450.4,7.37681023]
[1736273116582,0.28982,3451.5,3450.8,5.94981023]
[1736273116784,0.28982,3451.5,3451.3,0.28983]
[1736273117185,3.2078,3451.6,3451.2,0.28984]
[1736273117487,0.28984,3451.3,3451.1,0.28985]
[1736273117884,0.28984,3451.3,3451.0,0.28985]
[1736273118490,3.2078,3451.6,3450.8,5.94981023]
[1736273118785,3.2078,3451.6,3451.1,0.28984]
[1736273118988,3.2078,3451.6,3450.8,5.94981023]
[1736273118989,0.28983,3451.4,3451.2,0.28984]
[1736273119688,3.49761,3451.6,3451.4,0.28982]
[1736273119988,3.2078,3451.6,3451.5,0.28982]
[1736273121787,0.00510446,3452.3,3452.1,0.28976]
[1736273122088,0.00510446,3452.3,3452.2,0.28976]
[1736273122686,0.00510446,3452.3,3452.2,3.03177023]
[1736273123088,8.86025797,3453.0,3452.2,7.74201023]
[1736273123385,4.4765,3453.8,3452.7,3.2078]
[1736273123585,4.4765,3453.8,3453.1,3.2078]
[1736273123790,0.28963,3453.8,3453.4,0.28965]
[1736273123990,3.2078,3453.9,3453.5,0.28965]
[1736273124182,3.2078,3453.9,3453.1,3.2078]
[1736273124383,0.28962,3453.8,3453.4,0.28965]
[1736273124583,3.49742,3453.9,3453.1,3.2078]
[1736273124992,3.2078,3453.9,3453.6,0.28963]
[1736273125592,3.2078,3453.9,3453.1,3.2078]
[1736273125787,0.28964,3453.6,3453.2,3.2078]
[1736273125993,0.28962,3453.8,3453.4,0.28965]
[1736273126191,0.28964,3453.6,3453.2,3.49747]
[1736273126691,3.93185,3453.9,3452.8,4.2836]
[1736273126885,0.28963,3453.8,3453.3,0.28966]
[1736273127079,3.2078,3453.9,3453.1,3.2078]
[1736273127284,0.28962,3453.8,3453.4,0.28966]
[1736273127482,0.28962,3453.8,3453.3,0.28966]
[1736273127694,0.28963,3453.7,3453.3,0.28966]
[1736273128691,3.2078,3453.9,3453.1,3.2078]
[1736273128889,0.28964,3453.6,3453.2,0.28967]
[1736273129285,3.2078,3453.9,3453.1,3.2078]
[1736273129489,0.28965,3453.5,3453.2,0.28967]
[1736273130285,3.2078,3453.9,3453.1,3.49748]
[1736273130595,0.28967,3453.2,3453.1,3.2078]
[1736273130791,3.2078,3453.4,3452.6,3.2078]
[1736273130986,0.28968,3453.2,3452.9,0.2897]
[1736273131184,0.28968,3453.1,3452.8,0.2897]
[1736273131485,3.2078,3453.4,3452.6,5.94981023]
[1736273131889,0.28969,3453.1,3452.8,0.28971]
[1736273132190,0.28969,3453.1,3452.6,5.94981023]
[1736273132191,3.2078,3453.4,3452.6,5.94981023]
[1736273132393,0.28968,3453.2,3452.9,0.2897]
[1736273132791,0.28969,3453.1,3452.9,0.2897]
[1736273133095,0.28968,3453.2,3452.9,0.2897]
[1736273133690,3.2078,3453.4,3452.8,0.2897]
[1736273133691,0.28969,3453.1,3452.8,0.2897]
[1736273133892,0.28969,3453.1,3452.9,0.2897]
[1736273134093,0.28969,3453.1,3452.6,5.94981023]
[1736273134292,0.2897,3452.9,3452.6,5.94981023]
[1736273134503,3.2078,3453.4,3452.6,3.2078]
[1736273134796,7.4463,3453.4,3452.6,3.2078]
[1736273134991,0.28971,3452.8,3452.6,3.49752]
[1736273135297,0.2897,3452.9,3452.6,3.49752]
[1736273136093,7.4463,3453.4,3452.6,3.49752]
[1736273136397,0.28972,3452.7,3452.6,3.2078]
[1736273138288,4.4943,3452.9,3452.1,9.3014]
[1736273138486,0.28979,3451.8,3451.7,3.2078]
[1736273138687,3.2078,3452.6,3451.7,3.2078]
[1736273138892,0.72437,3452.4,3451.7,3.49759]
[1736273139097,0.72437,3452.4,3451.6,3.2078]
[1736273139296,0.72437,3452.4,3451.6,3.4976]
[1736273139297,0.28979,3451.8,3451.6,3.4976]
[1736273139497,0.28979,3451.8,3451.7,0.2898]
[1736273139797,0.28978,3451.9,3451.7,0.2898]
[1736273140198,0.72437,3452.4,3451.7,0.2898]
[1736273140398,0.28978,3451.9,3451.7,0.2898]
[1736273140601,0.28978,3451.9,3451.8,0.28979]
[1736273141092,0.28978,3451.9,3451.6,3.2078]
[1736273141287,4.675,3452.5,3452.2,0.28975]
[1736273141288,0.28975,3452.3,3452.2,0.28975]
[1736273141596,4.675,3452.5,3452.1,3.2078]